[Event "Early-Titled-Tuesday-Blitz-September-26-2023"]
[Site "Chess.com"]
[Date "2023.09.26"]
[Round "3"]
[White "Journey_to_GrandMaster_YT"]
[Black "yoelpolanco"]
[Result "1-0"]
[WhiteElo "2592"]
[BlackElo "2326"]
[TimeControl "180+1"]
[EndTime "8:27:59 PDT"]
[Termination "Journey_to_GrandMaster_YT won by resignation"]

1. d4 {[%clk 0:03:00.9]} 1... Nf6 {[%clk 0:02:18.8]} 2. Nf3 {[%clk 0:03:00.6]}
2... e6 {[%clk 0:02:19.1]} 3. c4 {[%clk 0:03:00.4]} 3... d5 {[%clk 0:02:18.8]}
4. Nc3 {[%clk 0:03:00.6]} 4... c5 {[%clk 0:02:19.4]} 5. cxd5 {[%clk 0:03:00.7]}
5... Nxd5 {[%clk 0:02:20.3]} 6. e4 {[%clk 0:03:00.7]} 6... Nxc3 {[%clk
0:02:20.6]} 7. bxc3 {[%clk 0:03:01.6]} 7... cxd4 {[%clk 0:02:21.3]} 8. cxd4
{[%clk 0:03:02.5]} 8... Bb4+ {[%clk 0:02:21.6]} 9. Bd2 {[%clk 0:03:02.7]} 9...
Bxd2+ {[%clk 0:02:22.3]} 10. Qxd2 {[%clk 0:03:03.6]} 10... O-O {[%clk
0:02:22.2]} 11. Bc4 {[%clk 0:03:04.3]} 11... Nc6 {[%clk 0:02:22.1]} 12. O-O
{[%clk 0:03:02.8]} 12... b6 {[%clk 0:02:22.5]} 13. Rac1 {[%clk 0:02:57.9]} 13...
Bb7 {[%clk 0:02:22.3]} 14. Rfd1 {[%clk 0:02:49.9]} 14... Rc8 {[%clk 0:02:22.8]}
15. h4 {[%clk 0:02:39.2]} 15... Na5 {[%clk 0:02:22.6]} 16. Bd3 {[%clk
0:02:38.1]} 16... Qe7 {[%clk 0:01:41.4]} 17. h5 {[%clk 0:02:22.4]} 17... Rfd8
{[%clk 0:01:36.5]} 18. h6 {[%clk 0:02:20.1]} 18... g6 {[%clk 0:01:36]} 19. Qf4
{[%clk 0:02:18.4]} 19... a6 {[%clk 0:01:26.3]} 20. Rxc8 {[%clk 0:02:13.7]} 20...
Rxc8 {[%clk 0:01:26.2]} 21. Ng5 {[%clk 0:01:44.2]} 21... f6 {[%clk 0:00:49.7]}
22. Nf3 {[%clk 0:01:41.8]} 22... b5 {[%clk 0:00:41.4]} 23. Bb1 {[%clk
0:01:23.9]} 23... Nc4 {[%clk 0:00:39.8]} 24. d5 {[%clk 0:01:20.3]} 24... e5
{[%clk 0:00:38.9]} 25. Qg4 {[%clk 0:01:17.7]} 25... Rd8 {[%clk 0:00:34.5]} 26.
Nd2 {[%clk 0:01:10.3]} 26... Nxd2 {[%clk 0:00:16.7]} 27. Rxd2 {[%clk 0:01:11.2]}
27... Bc8 {[%clk 0:00:14.4]} 28. Qd1 {[%clk 0:01:09]} 28... Bd7 {[%clk
0:00:12.9]} 29. Rc2 {[%clk 0:01:08.1]} 29... Rc8 {[%clk 0:00:13.4]} 30. Rxc8+
{[%clk 0:01:05.4]} 30... Bxc8 {[%clk 0:00:14.3]} 31. Qc2 {[%clk 0:01:04.7]}
31... Qd8 {[%clk 0:00:12]} 32. Qc6 {[%clk 0:01:03.1]} 32... Kf7 {[%clk
0:00:08.7]} 33. Bc2 {[%clk 0:01:00.5]} 33... g5 {[%clk 0:00:09.2]} 34. Bb3
{[%clk 0:00:59.2]} 34... Kg6 {[%clk 0:00:09.8]} 35. d6 {[%clk 0:00:52]} 35...
Bd7 {[%clk 0:00:10.3]} 36. Qc5 {[%clk 0:00:47.7]} 36... Kxh6 {[%clk 0:00:09.8]}
37. Bd5 {[%clk 0:00:46.7]} 37... Qc8 {[%clk 0:00:08.7]} 38. Qxc8 {[%clk
0:00:45.8]} 38... Bxc8 {[%clk 0:00:08.7]} 39. Bc6 {[%clk 0:00:46.5]} 39... b4
{[%clk 0:00:01.8]} 40. d7 {[%clk 0:00:44.9]} 40... Bxd7 {[%clk 0:00:01.9]} 41.
Bxd7 {[%clk 0:00:45.8]} 41... Kg7 {[%clk 0:00:01.5]} 42. Kf1 {[%clk 0:00:46.4]}
42... Kf7 {[%clk 0:00:02.1]} 43. Ke2 {[%clk 0:00:47.1]} 43... Ke7 {[%clk
0:00:03]} 44. Ba4 {[%clk 0:00:46.9]} 44... Kd6 {[%clk 0:00:03.2]} 45. Kd3 {[%clk
0:00:47.6]} 45... Ke6 {[%clk 0:00:02.2]} 46. g4 {[%clk 0:00:47.5]} 46... Kd6
{[%clk 0:00:02.2]} 47. Kc4 {[%clk 0:00:47.6]} 47... a5 {[%clk 0:00:03.1]} 1-0

[Event "Early-Titled-Tuesday-Blitz-September-26-2023"]
[Site "Chess.com"]
[Date "2023.09.26"]
[Round "3"]
[White "lioni26"]
[Black "Rainbow2014"]
[Result "0-1"]
[WhiteElo "2563"]
[BlackElo "2354"]
[TimeControl "180+1"]
[EndTime "8:28:01 PDT"]
[Termination "Rainbow2014 won on time"]

1. e4 {[%clk 0:02:57]} 1... e5 {[%clk 0:02:49.4]} 2. Nf3 {[%clk 0:02:56.5]} 2...
Nf6 {[%clk 0:02:48.3]} 3. d4 {[%clk 0:02:52.7]} 3... Nxe4 {[%clk 0:02:47.7]} 4.
Bd3 {[%clk 0:02:52.9]} 4... Nc6 {[%clk 0:02:46.5]} 5. dxe5 {[%clk 0:02:49.7]}
5... Nc5 {[%clk 0:02:38.5]} 6. Be2 {[%clk 0:02:46.5]} 6... d6 {[%clk 0:02:36.9]}
7. Bf4 {[%clk 0:02:44.2]} 7... dxe5 {[%clk 0:02:19.1]} 8. Qxd8+ {[%clk
0:02:42.9]} 8... Nxd8 {[%clk 0:02:18.8]} 9. Nxe5 {[%clk 0:02:42.6]} 9... Bf5
{[%clk 0:02:14.6]} 10. Na3 {[%clk 0:02:17.7]} 10... Nce6 {[%clk 0:02:10]} 11.
Bg3 {[%clk 0:02:17.2]} 11... Bxa3 {[%clk 0:02:07.9]} 12. bxa3 {[%clk 0:02:17.4]}
12... Bxc2 {[%clk 0:02:07.8]} 13. Rc1 {[%clk 0:02:07.1]} 13... Be4 {[%clk
0:02:02.5]} 14. O-O {[%clk 0:02:01.3]} 14... Nc6 {[%clk 0:01:48.7]} 15. Bb5
{[%clk 0:01:35.4]} 15... O-O {[%clk 0:01:33.4]} 16. Nxc6 {[%clk 0:01:31.5]}
16... bxc6 {[%clk 0:01:27.3]} 17. Bxc6 {[%clk 0:01:31.6]} 17... Bxc6 {[%clk
0:01:20.5]} 18. Rxc6 {[%clk 0:01:32.5]} 18... Rab8 {[%clk 0:01:19.7]} 19. Ra6
{[%clk 0:01:11.8]} 19... Rb7 {[%clk 0:01:10.6]} 20. Be5 {[%clk 0:00:55.3]} 20...
Rd8 {[%clk 0:01:07.5]} 21. f4 {[%clk 0:00:52]} 21... Rd2 {[%clk 0:00:56]} 22. f5
{[%clk 0:00:43.2]} 22... Nc5 {[%clk 0:00:53.1]} 23. Rc6 {[%clk 0:00:42]} 23...
f6 {[%clk 0:00:26.6]} 24. Bf4 {[%clk 0:00:20.1]} 24... Rd5 {[%clk 0:00:12.7]}
25. Bxc7 {[%clk 0:00:19.8]} 25... Rb2 {[%clk 0:00:08.9]} 26. Re1 {[%clk
0:00:12.4]} 26... h5 {[%clk 0:00:07.8]} 27. Bf4 {[%clk 0:00:10.5]} 27... Nd3
{[%clk 0:00:05.6]} 28. Re8+ {[%clk 0:00:09.3]} 28... Kf7 {[%clk 0:00:05.4]} 29.
Be3 {[%clk 0:00:06.8]} 29... Kxe8 {[%clk 0:00:04.7]} 0-1

[Event "Early-Titled-Tuesday-Blitz-September-26-2023"]
[Site "Chess.com"]
[Date "2023.09.26"]
[Round "3"]
[White "HrvojeZagreb"]
[Black "santosalberto1987"]
[Result "1-0"]
[WhiteElo "2294"]
[BlackElo "2473"]
[TimeControl "180+1"]
[EndTime "8:28:02 PDT"]
[Termination "HrvojeZagreb won by resignation"]

1. f4 {[%clk 0:02:55.9]} 1... c5 {[%clk 0:01:30.8]} 2. e4 {[%clk 0:02:52]} 2...
Nc6 {[%clk 0:01:30.7]} 3. Nf3 {[%clk 0:02:51.7]} 3... g6 {[%clk 0:01:31.1]} 4.
d3 {[%clk 0:02:50.4]} 4... Bg7 {[%clk 0:01:31.4]} 5. Be2 {[%clk 0:02:51]} 5...
e6 {[%clk 0:01:31]} 6. O-O {[%clk 0:02:51.2]} 6... Nge7 {[%clk 0:01:31.5]} 7. c3
{[%clk 0:02:49]} 7... O-O {[%clk 0:01:31.6]} 8. Qe1 {[%clk 0:02:49.1]} 8... b5
{[%clk 0:01:29.6]} 9. Qh4 {[%clk 0:02:48.7]} 9... d6 {[%clk 0:01:29]} 10. Na3
{[%clk 0:02:28.7]} 10... b4 {[%clk 0:01:28.1]} 11. cxb4 {[%clk 0:02:24]} 11...
Nxb4 {[%clk 0:01:27.8]} 12. f5 {[%clk 0:02:09.8]} 12... exf5 {[%clk 0:01:27.2]}
13. Bh6 {[%clk 0:02:09.3]} 13... fxe4 {[%clk 0:01:17.6]} 14. dxe4 {[%clk
0:02:07.5]} 14... Nf5 {[%clk 0:01:06]} 15. Qxd8 {[%clk 0:01:44.2]} 15... Rxd8
{[%clk 0:01:05.4]} 16. Bxg7 {[%clk 0:01:43.6]} 16... Nxg7 {[%clk 0:01:04.6]} 17.
Rad1 {[%clk 0:01:40.2]} 17... Be6 {[%clk 0:00:59.5]} 18. Nb5 {[%clk 0:01:32.7]}
18... Bxa2 {[%clk 0:00:50.2]} 19. Nxd6 {[%clk 0:01:28.2]} 19... Nc6 {[%clk
0:00:47]} 20. Nb7 {[%clk 0:01:17.7]} 20... Rxd1 {[%clk 0:00:41.8]} 21. Rxd1
{[%clk 0:01:18.6]} 21... Nd4 {[%clk 0:00:42]} 22. Nxd4 {[%clk 0:01:13]} 22...
cxd4 {[%clk 0:00:42.9]} 23. Rxd4 {[%clk 0:01:13.2]} 23... Rb8 {[%clk 0:00:43.1]}
24. Ra4 {[%clk 0:00:57.4]} 24... Rxb7 {[%clk 0:00:34.6]} 25. Rxa2 {[%clk
0:00:57.1]} 25... Ne6 {[%clk 0:00:35.1]} 26. Bc4 {[%clk 0:00:53.6]} 26... Nc5
{[%clk 0:00:35.2]} 27. Bd5 {[%clk 0:00:51.8]} 27... Re7 {[%clk 0:00:35.1]} 28.
b4 {[%clk 0:00:50]} 28... Nxe4 {[%clk 0:00:34.2]} 29. Re2 {[%clk 0:00:47.8]}
29... Re5 {[%clk 0:00:26.4]} 30. Bxe4 {[%clk 0:00:44.4]} 30... Rb5 {[%clk
0:00:26.1]} 31. Rb2 {[%clk 0:00:42.2]} 31... a5 {[%clk 0:00:26.1]} 32. Bd3
{[%clk 0:00:38.7]} 32... Rxb4 {[%clk 0:00:26.4]} 33. Rxb4 {[%clk 0:00:38.5]}
33... axb4 {[%clk 0:00:27.3]} 34. Kf2 {[%clk 0:00:37]} 34... Kg7 {[%clk
0:00:27.7]} 35. Ke3 {[%clk 0:00:36.9]} 35... f5 {[%clk 0:00:26]} 36. Kd4 {[%clk
0:00:36.6]} 36... Kf6 {[%clk 0:00:25.9]} 37. Kc4 {[%clk 0:00:34.6]} 37... g5
{[%clk 0:00:24.3]} 38. Kxb4 {[%clk 0:00:34]} 38... f4 {[%clk 0:00:21]} 39. Bxh7
{[%clk 0:00:32.3]} 39... g4 {[%clk 0:00:21.2]} 40. Kc4 {[%clk 0:00:27.6]} 40...
f3 {[%clk 0:00:21.1]} 41. g3 {[%clk 0:00:26.3]} 41... Ke5 {[%clk 0:00:17.3]} 42.
Bd3 {[%clk 0:00:24.3]} 1-0

[Event "Early-Titled-Tuesday-Blitz-September-26-2023"]
[Site "Chess.com"]
[Date "2023.09.26"]
[Round "3"]
[White "Zurability"]
[Black "AleksanderHnydiuk"]
[Result "0-1"]
[WhiteElo "2743"]
[BlackElo "2552"]
[TimeControl "180+1"]
[EndTime "8:28:03 PDT"]
[Termination "AleksanderHnydiuk won by resignation"]

1. Nf3 {[%clk 0:03:00.9]} 1... Nf6 {[%clk 0:02:59.6]} 2. g3 {[%clk 0:03:00.8]}
2... d5 {[%clk 0:02:59.2]} 3. Bg2 {[%clk 0:03:01.2]} 3... Nbd7 {[%clk
0:02:59.5]} 4. O-O {[%clk 0:03:01.9]} 4... e5 {[%clk 0:02:59.7]} 5. c4 {[%clk
0:03:02]} 5... c6 {[%clk 0:02:59.6]} 6. cxd5 {[%clk 0:03:00.7]} 6... cxd5 {[%clk
0:02:59.1]} 7. d4 {[%clk 0:02:56.5]} 7... e4 {[%clk 0:02:58.7]} 8. Nfd2 {[%clk
0:02:54.9]} 8... Bd6 {[%clk 0:02:56.4]} 9. f3 {[%clk 0:02:54.5]} 9... exf3
{[%clk 0:02:53]} 10. exf3 {[%clk 0:02:40.8]} 10... O-O {[%clk 0:02:53.2]} 11.
Nc3 {[%clk 0:02:41]} 11... Re8 {[%clk 0:02:52.6]} 12. Rf2 {[%clk 0:02:33.5]}
12... Nf8 {[%clk 0:02:49.8]} 13. Nf1 {[%clk 0:02:33.8]} 13... h6 {[%clk
0:02:45.7]} 14. Qd3 {[%clk 0:02:24]} 14... Bd7 {[%clk 0:02:36.5]} 15. Bd2 {[%clk
0:02:23.7]} 15... Rc8 {[%clk 0:02:35.7]} 16. Ne3 {[%clk 0:02:20.3]} 16... Be6
{[%clk 0:02:20.7]} 17. Re1 {[%clk 0:02:18.7]} 17... Bb8 {[%clk 0:02:18.2]} 18.
Rfe2 {[%clk 0:02:15.1]} 18... g6 {[%clk 0:02:14.1]} 19. f4 {[%clk 0:02:02.3]}
19... Ne4 {[%clk 0:01:46.7]} 20. Nexd5 {[%clk 0:01:27.1]} 20... Nxd2 {[%clk
0:01:25.6]} 21. Qxd2 {[%clk 0:01:25.5]} 21... Kg7 {[%clk 0:00:59]} 22. f5 {[%clk
0:01:20.7]} 22... gxf5 {[%clk 0:00:56.4]} 23. Nf4 {[%clk 0:01:20]} 23... Qg5
{[%clk 0:00:48.2]} 24. d5 {[%clk 0:00:54.4]} 24... Bd7 {[%clk 0:00:45]} 25. d6
{[%clk 0:00:54.7]} 25... Rxe2 {[%clk 0:00:41.8]} 26. Rxe2 {[%clk 0:00:55.6]}
26... Ne6 {[%clk 0:00:32.8]} 27. Bxb7 {[%clk 0:00:31.8]} 27... Nxf4 {[%clk
0:00:32.2]} 28. Qxf4 {[%clk 0:00:25.9]} 28... Qxf4 {[%clk 0:00:32.2]} 29. gxf4
{[%clk 0:00:26.8]} 29... Re8 {[%clk 0:00:32]} 30. Re7 {[%clk 0:00:19.1]} 30...
Rd8 {[%clk 0:00:16.2]} 31. Re5 {[%clk 0:00:11.3]} 31... Bxd6 {[%clk 0:00:15.2]}
32. Rd5 {[%clk 0:00:12]} 32... Be6 {[%clk 0:00:14.9]} 33. Rd2 {[%clk 0:00:10.3]}
33... Bc5+ {[%clk 0:00:14.6]} 34. Rf2 {[%clk 0:00:05.9]} 34... Rd2 {[%clk
0:00:14.9]} 0-1

[Event "Early-Titled-Tuesday-Blitz-September-26-2023"]
[Site "Chess.com"]
[Date "2023.09.26"]
[Round "3"]
[White "Gerasimenyuk_Miha"]
[Black "Russian_berezka"]
[Result "1-0"]
[WhiteElo "2422"]
[BlackElo "2597"]
[TimeControl "180+1"]
[EndTime "8:28:03 PDT"]
[Termination "Gerasimenyuk_Miha won by resignation"]

1. d4 {[%clk 0:02:55.7]} 1... Nf6 {[%clk 0:02:59.3]} 2. Nf3 {[%clk 0:02:53.9]}
2... d5 {[%clk 0:02:58.9]} 3. Bg5 {[%clk 0:02:54.6]} 3... Ne4 {[%clk 0:02:58.1]}
4. Bh4 {[%clk 0:02:54.9]} 4... h5 {[%clk 0:02:57.9]} 5. e3 {[%clk 0:02:55.2]}
5... f6 {[%clk 0:02:56.4]} 6. Nc3 {[%clk 0:02:53.7]} 6... g5 {[%clk 0:02:48.7]}
7. Nxe4 {[%clk 0:02:51.5]} 7... dxe4 {[%clk 0:02:43.2]} 8. Nd2 {[%clk
0:02:51.5]} 8... gxh4 {[%clk 0:02:39.1]} 9. Nxe4 {[%clk 0:02:51.2]} 9... Bg4
{[%clk 0:02:10.1]} 10. Be2 {[%clk 0:02:48.8]} 10... Bxe2 {[%clk 0:01:49.7]} 11.
Qxe2 {[%clk 0:02:47.3]} 11... Qd5 {[%clk 0:01:42.2]} 12. Qf3 {[%clk 0:02:44.9]}
12... Nd7 {[%clk 0:01:30.2]} 13. b3 {[%clk 0:02:36.6]} 13... f5 {[%clk
0:01:21.1]} 14. Ng5 {[%clk 0:02:28.9]} 14... Qxf3 {[%clk 0:01:20.3]} 15. Nxf3
{[%clk 0:02:29.7]} 15... h3 {[%clk 0:01:20.6]} 16. gxh3 {[%clk 0:02:28.6]} 16...
Rg8 {[%clk 0:01:14.3]} 17. Ke2 {[%clk 0:02:27.6]} 17... Bh6 {[%clk 0:01:09.7]}
18. c4 {[%clk 0:02:24.4]} 18... e6 {[%clk 0:01:08.1]} 19. Rad1 {[%clk
0:02:23.2]} 19... Ke7 {[%clk 0:01:07.2]} 20. b4 {[%clk 0:02:11.3]} 20... a5
{[%clk 0:01:03.7]} 21. b5 {[%clk 0:02:10.9]} 21... c6 {[%clk 0:01:03.2]} 22. Rb1
{[%clk 0:02:09.2]} 22... c5 {[%clk 0:01:02.1]} 23. d5 {[%clk 0:02:06.1]} 23...
Nb6 {[%clk 0:00:57.5]} 24. Rbc1 {[%clk 0:02:02.1]} 24... Rad8 {[%clk 0:00:52.7]}
25. dxe6 {[%clk 0:01:59.4]} 25... Kxe6 {[%clk 0:00:50.5]} 26. Rhd1 {[%clk
0:01:49]} 26... Rxd1 {[%clk 0:00:49.6]} 27. Kxd1 {[%clk 0:01:43.4]} 27... Nd7
{[%clk 0:00:33.3]} 28. Ke2 {[%clk 0:01:42.2]} 28... Ne5 {[%clk 0:00:33.9]} 29.
Nxe5 {[%clk 0:01:38.1]} 29... Kxe5 {[%clk 0:00:34.8]} 30. Rd1 {[%clk 0:01:38.4]}
30... Ke6 {[%clk 0:00:32]} 31. Rd5 {[%clk 0:01:34.1]} 31... b6 {[%clk
0:00:31.7]} 32. Kf3 {[%clk 0:01:30]} 32... Bg7 {[%clk 0:00:22.6]} 33. Kf4 {[%clk
0:01:23]} 33... Bh6+ {[%clk 0:00:22.7]} 34. Kf3 {[%clk 0:01:22.7]} 34... Rf8
{[%clk 0:00:23.5]} 35. a4 {[%clk 0:01:22.1]} 35... Bg5 {[%clk 0:00:21.9]} 36.
Kg3 {[%clk 0:01:18.3]} 36... h4+ {[%clk 0:00:21.1]} 37. Kf3 {[%clk 0:01:18.2]}
37... Rf7 {[%clk 0:00:22]} 38. Ke2 {[%clk 0:01:12.6]} 38... Rd7 {[%clk
0:00:21.4]} 39. f4 {[%clk 0:01:12.3]} 39... Bf6 {[%clk 0:00:19.9]} 40. Rxd7
{[%clk 0:01:09.4]} 40... Kxd7 {[%clk 0:00:20.3]} 41. Kf3 {[%clk 0:01:08.9]}
41... Bb2 {[%clk 0:00:17.7]} 42. Ke2 {[%clk 0:01:08.6]} 42... Bc1 {[%clk
0:00:17.5]} 43. Kf3 {[%clk 0:01:08.5]} 43... Ke6 {[%clk 0:00:17.4]} 44. Ke2
{[%clk 0:01:07.9]} 44... Bb2 {[%clk 0:00:12.4]} 45. Kd2 {[%clk 0:01:07]} 45...
Kd6 {[%clk 0:00:10.4]} 46. Kd3 {[%clk 0:01:06.3]} 46... Ba1 {[%clk 0:00:10]} 47.
Ke2 {[%clk 0:01:06.2]} 47... Bd4 {[%clk 0:00:08.4]} 48. exd4 {[%clk 0:00:59.3]}
48... cxd4 {[%clk 0:00:08.5]} 49. Kd2 {[%clk 0:00:59.4]} 49... Kc7 {[%clk
0:00:04.5]} 50. Kd3 {[%clk 0:00:59.1]} 50... Kd7 {[%clk 0:00:03.8]} 51. Kxd4
{[%clk 0:00:59.7]} 51... Kd6 {[%clk 0:00:04.3]} 52. c5+ {[%clk 0:00:59.4]} 52...
bxc5+ {[%clk 0:00:04.9]} 53. Kc4 {[%clk 0:01:00.2]} 53... Kd7 {[%clk 0:00:05.2]}
54. Kxc5 {[%clk 0:01:00.9]} 54... Kc7 {[%clk 0:00:06]} 55. b6+ {[%clk
0:01:00.7]} 55... Kb7 {[%clk 0:00:06.9]} 56. Kb5 {[%clk 0:01:00.5]} 1-0

[Event "Early-Titled-Tuesday-Blitz-September-26-2023"]
[Site "Chess.com"]
[Date "2023.09.26"]
[Round "3"]
[White "AradNazari"]
[Black "Honiex"]
[Result "1-0"]
[WhiteElo "2816"]
[BlackElo "2578"]
[TimeControl "180+1"]
[EndTime "8:28:05 PDT"]
[Termination "AradNazari won by resignation"]

1. e4 {[%clk 0:03:00.9]} 1... c5 {[%clk 0:02:59.8]} 2. Nf3 {[%clk 0:03:01.3]}
2... Nf6 {[%clk 0:03:00]} 3. e5 {[%clk 0:02:57.8]} 3... Nd5 {[%clk 0:03:00]} 4.
Nc3 {[%clk 0:02:57.7]} 4... e6 {[%clk 0:03:00.5]} 5. Ne4 {[%clk 0:02:58]} 5...
f5 {[%clk 0:02:59.5]} 6. Nc3 {[%clk 0:02:57.9]} 6... Nb4 {[%clk 0:02:59.6]} 7.
a3 {[%clk 0:02:51.1]} 7... N4c6 {[%clk 0:02:59.6]} 8. d3 {[%clk 0:02:47.8]} 8...
Nd4 {[%clk 0:02:59.4]} 9. h4 {[%clk 0:02:35.7]} 9... Nbc6 {[%clk 0:02:58.3]} 10.
Bf4 {[%clk 0:02:35.2]} 10... Be7 {[%clk 0:02:52.5]} 11. g3 {[%clk 0:02:29.1]}
11... b6 {[%clk 0:02:50.6]} 12. Bg2 {[%clk 0:02:27.4]} 12... Bb7 {[%clk
0:02:47]} 13. Nxd4 {[%clk 0:02:27.1]} 13... cxd4 {[%clk 0:02:46.7]} 14. Nb5
{[%clk 0:02:23.9]} 14... Qc8 {[%clk 0:02:20.4]} 15. O-O {[%clk 0:02:21]} 15...
a6 {[%clk 0:02:17.3]} 16. Nd6+ {[%clk 0:02:20.8]} 16... Bxd6 {[%clk 0:02:17.5]}
17. exd6 {[%clk 0:02:21.7]} 17... O-O {[%clk 0:02:13.3]} 18. Re1 {[%clk
0:02:17.4]} 18... Nd8 {[%clk 0:01:50.9]} 19. Bxb7 {[%clk 0:01:51.5]} 19... Qxb7
{[%clk 0:01:51.8]} 20. c4 {[%clk 0:01:45.3]} 20... Nc6 {[%clk 0:01:27.8]} 21. b4
{[%clk 0:01:39.9]} 21... b5 {[%clk 0:01:28]} 22. c5 {[%clk 0:01:38.7]} 22...
Rae8 {[%clk 0:01:25.3]} 23. Be5 {[%clk 0:01:36.1]} 23... a5 {[%clk 0:00:56.7]}
24. Qf3 {[%clk 0:01:27.9]} 24... Qb8 {[%clk 0:00:32.4]} 25. bxa5 {[%clk
0:01:17.8]} 25... Qa7 {[%clk 0:00:31.5]} 26. Rac1 {[%clk 0:01:09.6]} 26... Qxa5
{[%clk 0:00:31.3]} 27. Qf4 {[%clk 0:01:10]} 27... Qxa3 {[%clk 0:00:23.9]} 28.
Qg5 {[%clk 0:00:48]} 28... Nxe5 {[%clk 0:00:21.5]} 29. Rxe5 {[%clk 0:00:48.9]}
29... Qxd3 {[%clk 0:00:22.1]} 30. c6 {[%clk 0:00:44.3]} 30... f4 {[%clk
0:00:17.8]} 31. cxd7 {[%clk 0:00:30.2]} 31... Rd8 {[%clk 0:00:18.1]} 32. Qxd8
{[%clk 0:00:22.8]} 32... Rxd8 {[%clk 0:00:17.7]} 33. Rc8 {[%clk 0:00:23.5]}
33... fxg3 {[%clk 0:00:14.7]} 34. Rxd8+ {[%clk 0:00:23.9]} 34... Kf7 {[%clk
0:00:15]} 35. Rf8+ {[%clk 0:00:24.3]} 35... Kg6 {[%clk 0:00:14.6]} 36. Rg5+
{[%clk 0:00:24.6]} 36... Kh6 {[%clk 0:00:14.2]} 37. d8=Q {[%clk 0:00:25.1]}
37... gxf2+ {[%clk 0:00:14.3]} 38. Rxf2 {[%clk 0:00:25.7]} 38... Qd1+ {[%clk
0:00:14.5]} 39. Kg2 {[%clk 0:00:25.9]} 39... Qd3 {[%clk 0:00:14]} 40. Rf6+
{[%clk 0:00:25.9]} 1-0

[Event "Early-Titled-Tuesday-Blitz-September-26-2023"]
[Site "Chess.com"]
[Date "2023.09.26"]
[Round "3"]
[White "diamonds13"]
[Black "C_K_G"]
[Result "0-1"]
[WhiteElo "2314"]
[BlackElo "1882"]
[TimeControl "180+1"]
[EndTime "8:28:06 PDT"]
[Termination "C_K_G won by resignation"]

1. d4 {[%clk 0:02:59.3]} 1... d5 {[%clk 0:02:59.7]} 2. c4 {[%clk 0:02:58.8]}
2... e6 {[%clk 0:02:59.9]} 3. Nc3 {[%clk 0:02:56.7]} 3... Nf6 {[%clk 0:02:59.9]}
4. cxd5 {[%clk 0:02:54.7]} 4... exd5 {[%clk 0:02:59.5]} 5. Bf4 {[%clk
0:02:55.4]} 5... Bd6 {[%clk 0:02:57.7]} 6. Bg3 {[%clk 0:02:48.6]} 6... O-O
{[%clk 0:02:56.2]} 7. e3 {[%clk 0:02:39.8]} 7... a6 {[%clk 0:02:55.9]} 8. a4
{[%clk 0:02:38.4]} 8... b6 {[%clk 0:02:54.5]} 9. Bd3 {[%clk 0:02:38.4]} 9... Bb7
{[%clk 0:02:53.9]} 10. Nge2 {[%clk 0:02:38.3]} 10... c5 {[%clk 0:02:53.5]} 11.
dxc5 {[%clk 0:02:33.1]} 11... bxc5 {[%clk 0:02:52.6]} 12. Bxd6 {[%clk
0:02:33.1]} 12... Qxd6 {[%clk 0:02:51.7]} 13. Nf4 {[%clk 0:02:33.3]} 13... d4
{[%clk 0:02:45.5]} 14. Nce2 {[%clk 0:02:33]} 14... Nc6 {[%clk 0:02:23.7]} 15. e4
{[%clk 0:02:27.6]} 15... Ne5 {[%clk 0:02:22.1]} 16. f3 {[%clk 0:02:20.4]} 16...
c4 {[%clk 0:02:16.7]} 17. Bb1 {[%clk 0:02:20.3]} 17... d3 {[%clk 0:02:11]} 18.
Nc3 {[%clk 0:02:19.2]} 18... Qd4 {[%clk 0:01:32.7]} 19. Qd2 {[%clk 0:02:03.2]}
19... Rad8 {[%clk 0:01:25.9]} 20. Ba2 {[%clk 0:01:58.6]} 20... Rfe8 {[%clk
0:01:21.2]} 21. O-O-O {[%clk 0:01:57.7]} 21... Bc6 {[%clk 0:01:18.3]} 22. Kb1
{[%clk 0:01:41.6]} 22... Rb8 {[%clk 0:01:16.8]} 23. a5 {[%clk 0:01:38.1]} 23...
Rb7 {[%clk 0:01:12.3]} 24. Ka1 {[%clk 0:01:35]} 24... Reb8 {[%clk 0:01:10.7]}
25. Rb1 {[%clk 0:01:35.2]} 25... Qc5 {[%clk 0:00:52.3]} 26. Ncd5 {[%clk
0:01:32.9]} 26... Nxd5 {[%clk 0:00:50.2]} 27. exd5 {[%clk 0:01:29.4]} 27... Bxd5
{[%clk 0:00:49.9]} 28. Rhc1 {[%clk 0:01:20.8]} 28... Rb4 {[%clk 0:00:45.2]} 29.
Rc3 {[%clk 0:01:04.2]} 29... Qxa5 {[%clk 0:00:38.5]} 30. Ra3 {[%clk 0:00:55.9]}
30... Qc5 {[%clk 0:00:24]} 31. Nxd5 {[%clk 0:00:51.2]} 31... Qxd5 {[%clk
0:00:23.6]} 32. f4 {[%clk 0:00:51.8]} 32... Nc6 {[%clk 0:00:20.5]} 33. Rxa6
{[%clk 0:00:50.4]} 33... Nd4 {[%clk 0:00:20.5]} 34. Rc1 {[%clk 0:00:45.7]} 34...
Nb3+ {[%clk 0:00:17.6]} 35. Bxb3 {[%clk 0:00:45.5]} 35... Rxb3 {[%clk
0:00:18.2]} 36. Rc3 {[%clk 0:00:40.6]} 36... Qb5 {[%clk 0:00:14.7]} 37. Ra3
{[%clk 0:00:35]} 37... Rxb2 {[%clk 0:00:13.5]} 38. Rcb3 {[%clk 0:00:24.6]} 38...
Rxb3 {[%clk 0:00:13]} 0-1